bitfinex-derivatives/quotes_BTCF0:USTF0_20250630
["timestamp","ask_amount","ask_price","bid_price","bid_amount"]
[1751298398183,0.43059292,107650.0,107640.0,0.20094176]
[1751298398375,0.61633752,107650.0,107640.0,0.81926176]
[1751298398575,0.00099292,107650.0,107640.0,0.81926176]
[1751298398779,0.00099292,107650.0,107640.0,1.19092986]
[1751298398976,0.00099292,107650.0,107640.0,0.81926176]
[1751298399181,0.00099292,107650.0,107640.0,1.55172986]
[1751298399591,0.00099292,107650.0,107640.0,1.18006176]
[1751298399978,0.54753812,107650.0,107640.0,0.81926176]
[1751298400184,0.36179292,107650.0,107640.0,0.81926176]
[1751298400383,0.54753812,107650.0,107640.0,0.20094176]
[1751298400585,0.61603812,107650.0,107640.0,0.82042176]
[1751298400785,0.43029292,107650.0,107640.0,0.82078176]
[1751298400979,0.25523802,107650.0,107640.0,0.82078176]
[1751298401193,0.94603802,107650.0,107640.0,0.01517996]
[1751298401388,0.61603802,107650.0,107640.0,0.20094236]
[1751298401580,0.98770612,107650.0,107640.0,0.82074236]
[1751298401985,0.62690612,107650.0,107640.0,0.82074236]
[1751298402292,1.33770612,107650.0,107630.0,0.83668]
[1751298402485,1.33770612,107650.0,107620.0,0.67242581]
[1751298402486,0.1857797,107630.0,107620.0,0.67242581]
[1751298402686,0.54707616,107630.0,107620.0,1.01746271]
[1751298402880,1.34114426,107630.0,107620.0,1.01746271]
[1751298403189,0.93947616,107630.0,107620.0,1.01746271]
[1751298403386,0.61947616,107630.0,107620.0,1.01746271]
[1751298403892,0.61947616,107630.0,107620.0,0.23806271]
[1751298404091,0.61947616,107630.0,107620.0,1.01730271]
[1751298404787,0.61947616,107630.0,107620.0,1.01946271]
[1751298406096,0.36129646,107630.0,107620.0,1.01946271]
[1751298406287,0.00049646,107630.0,107620.0,1.09216271]
[1751298407181,0.00049646,107630.0,107620.0,1.09244271]
[1751298407495,0.91874426,107630.0,107620.0,0.98514271]
[1751298407693,0.25697616,107630.0,107620.0,0.98514271]
[1751298407996,0.07119646,107630.0,107620.0,0.98514271]
[1751298408298,0.03649646,107630.0,107620.0,0.98514271]
[1751298408592,0.03649646,107630.0,107620.0,1.05664271]
[1751298409294,0.00049646,107630.0,107620.0,1.05664271]
[1751298409700,0.00049646,107630.0,107620.0,1.78911081]
[1751298409895,0.00049646,107630.0,107620.0,1.41744271]
[1751298410497,0.00049646,107630.0,107620.0,1.78911081]
[1751298410794,1.04699936,107650.0,107640.0,0.1857625]
[1751298410795,0.00049646,107650.0,107640.0,0.1857625]
[1751298411098,0.00049646,107650.0,107640.0,0.8114025]
[1751298411291,0.03579646,107650.0,107640.0,0.8114025]
[1751298411486,0.61774176,107650.0,107640.0,0.8114025]
[1751298411890,0.43199646,107650.0,107640.0,0.8114025]
[1751298412092,0.07119646,107650.0,107640.0,0.8114025]
[1751298412293,0.43199646,107650.0,107640.0,0.2224625]
[1751298412595,0.03579646,107650.0,107640.0,1.0445625]
[1751298413100,0.22154176,107650.0,107640.0,1.0445625]
[1751298413304,0.22154176,107650.0,107640.0,0.9711625]
[1751298413305,0.61864176,107650.0,107640.0,0.9711625]
[1751298413505,0.61864176,107650.0,107640.0,0.1857625]
[1751298413695,0.61864176,107650.0,107640.0,0.9709225]
[1751298414408,0.61864176,107650.0,107640.0,0.1857625]
[1751298414596,0.61864176,107650.0,107640.0,0.9710425]
[1751298414998,0.61864176,107650.0,107640.0,0.1857625]
[1751298415198,0.61864176,107650.0,107640.0,0.9710425]
[1751298415598,0.43289646,107650.0,107640.0,0.9710425]
[1751298415799,0.61864176,107650.0,107640.0,0.9710425]
[1751298415993,0.07209646,107650.0,107640.0,0.9710425]
[1751298416196,0.00049646,107650.0,107640.0,1.7403106]
[1751298416404,0.0724,107670.0,107660.0,0.185728]
[1751298416601,0.43133997,107670.0,107660.0,0.81292092]
[1751298416799,0.61705077,107670.0,107660.0,0.81292092]
[1751298417406,0.61705077,107670.0,107660.0,0.18672092]
[1751298417602,0.98871887,107670.0,107660.0,0.97188092]
[1751298417798,0.65225077,107670.0,107660.0,0.97188092]
[1751298418008,1.02391887,107670.0,107660.0,0.18672092]
[1751298418201,0.65225077,107670.0,107660.0,0.34588092]
[1751298418397,0.65225077,107670.0,107660.0,0.18672092]
[1751298418398,1.02391887,107670.0,107660.0,0.18672092]
[1751298418708,1.02391887,107670.0,107660.0,0.34588092]
[1751298418907,1.02391887,107670.0,107660.0,0.00099292]
[1751298419110,1.20967887,107670.0,107660.0,0.00099292]
[1751298419911,1.20967887,107670.0,107660.0,0.18672092]
[1751298420203,1.20967887,107670.0,107660.0,0.00099292]
[1751298420406,1.20967887,107670.0,107660.0,0.18672092]
[1751298420407,0.83801077,107670.0,107660.0,0.18672092]
[1751298420607,1.27765077,107670.0,107660.0,0.18672092]
[1751298420819,0.65225077,107670.0,107660.0,0.18672092]
[1751298421111,0.07053997,107670.0,107660.0,0.18672092]
[1751298421300,0.07053997,107670.0,107660.0,1.21090092]
[1751298421508,0.3608,107680.0,107670.0,0.1857114]
[1751298421805,0.3975,107680.0,107670.0,0.1857114]
[1751298422005,0.4345,107680.0,107670.0,0.1857114]
[1751298422210,0.0737,107680.0,107670.0,0.18620786]
[1751298423009,0.0737,107680.0,107670.0,0.19568775]
[1751298423206,0.0367,107680.0,107670.0,0.97988775]
[1751298423406,0.3988,107690.0,107680.0,0.1856941]
[1751298423407,0.0747,107690.0,107680.0,0.1856941]
[1751298423606,0.0747,107690.0,107680.0,1.36992233]
[1751298423806,0.0377,107690.0,107680.0,1.74183866]
[1751298424108,0.001,107690.0,107680.0,1.81423866]
[1751298424310,0.0099066,107700.0,107690.0,0.1856768]
[1751298424511,0.05652504,107720.0,107710.0,0.1856423]
[1751298424809,0.05652488,107720.0,107710.0,1.37023279]
[1751298425008,0.05652488,107720.0,107710.0,0.99856469]
[1751298425214,0.05652488,107720.0,107710.0,1.44263279]
[1751298425409,0.001,107720.0,107710.0,1.14455511]
[1751298425712,0.001,107720.0,107710.0,1.87702321]
[1751298426212,0.001,107720.0,107710.0,1.50535511]
[1751298426408,0.001,107720.0,107710.0,1.87702321]
[1751298427004,0.05552488,107740.0,107730.0,0.20256307]
[1751298427204,8.41732488,107750.0,107740.0,0.1855906]
[1751298427410,8.45302488,107750.0,107740.0,0.35787883]
[1751298427607,8.41732488,107750.0,107740.0,0.76574693]
[1751298427807,7.92392038,107750.0,107740.0,1.70867092]
[1751298428008,7.78698088,107750.0,107740.0,1.33725105]
[1751298428208,6.68964756,107750.0,107740.0,1.70891915]
[1751298428412,6.40482246,107750.0,107740.0,2.08058725]
[1751298428604,6.40482246,107750.0,107740.0,2.42339898]
[1751298428605,6.24197303,107750.0,107740.0,2.42339898]
[1751298428804,6.17127873,107750.0,107740.0,2.42339898]
[1751298429004,6.17127873,107750.0,107740.0,2.05173088]
[1751298429203,6.17127873,107750.0,107740.0,2.15173088]
[1751298429402,6.10585917,107750.0,107740.0,1.78006278]
[1751298429610,5.86574357,107750.0,107740.0,1.78006278]
[1751298429812,5.66506927,107750.0,107740.0,2.52339898]
[1751298430116,5.66506927,107750.0,107740.0,1.90173088]
[1751298430411,5.32623567,107750.0,107740.0,2.52339898]
[1751298430608,5.13035317,107750.0,107740.0,2.47835915]
[1751298430915,4.81427507,107750.0,107740.0,2.35669105]
[1751298431108,4.67400407,107750.0,107740.0,2.35669105]
[1751298431317,3.31625943,107750.0,107740.0,3.19283898]
[1751298431507,2.97890933,107750.0,107740.0,3.19283898]
[1751298431702,2.50674713,107750.0,107740.0,3.19583898]
[1751298431910,1.82269063,107750.0,107740.0,3.19583898]
[1751298432112,1.37334293,107750.0,107740.0,3.19583898]
[1751298432417,0.76993643,107750.0,107740.0,3.19583898]
[1751298432610,0.58141963,107750.0,107740.0,3.19583898]
[1751298432805,0.51314303,107750.0,107740.0,2.45250278]
[1751298433006,0.35993873,107750.0,107740.0,3.19583898]
[1751298433315,0.00751593,107750.0,107740.0,3.19583898]
[1751298433518,0.00033541,107770.0,107760.0,0.1855554]
[1751298433817,0.00033541,107770.0,107760.0,1.72436902]
[1751298434018,0.00033541,107770.0,107760.0,1.72486548]
[1751298434314,0.00033541,107770.0,107760.0,1.35319738]
[1751298434518,0.00033541,107770.0,107760.0,1.72486548]
[1751298434714,0.00033541,107770.0,107760.0,1.7339651]
[1751298435216,0.001,107780.0,107770.0,0.1855382]
[1751298435414,0.001,107780.0,107770.0,1.34095453]
[1751298435712,0.001,107780.0,107770.0,0.71953466]
[1751298435917,0.186521,107780.0,107770.0,0.80399646]
[1751298436114,0.186521,107780.0,107770.0,1.11313466]
[1751298436315,0.186521,107780.0,107770.0,0.00049646]
[1751298436516,0.9558891,107780.0,107770.0,0.00049646]
[1751298436723,0.620321,107780.0,107770.0,0.85599236]
[1751298437109,0.620321,107780.0,107770.0,0.67045646]
[1751298437510,0.9919891,107780.0,107770.0,0.67045646]
[1751298437711,0.620321,107780.0,107770.0,0.00049646]
[1751298438019,0.620321,107780.0,107770.0,0.67149646]
[1751298438216,0.620321,107780.0,107770.0,0.00049646]
[1751298438520,0.9919891,107780.0,107770.0,0.67793646]
[1751298438717,0.9619891,107780.0,107770.0,0.67793646]
[1751298438913,0.9619891,107780.0,107770.0,0.00049646]
[1751298439114,0.590321,107780.0,107770.0,0.67885646]
[1751298439321,0.9619891,107780.0,107770.0,0.67885646]
[1751298439711,0.517321,107780.0,107770.0,0.00049646]
[1751298439912,0.9634891,107780.0,107770.0,0.00049646]
[1751298440118,0.0463848,107770.0,107740.0,0.55436812]
[1751298440317,0.3055203,107770.0,107760.0,0.01703803]
[1751298440518,0.1855527,107760.0,107750.0,0.678]
[1751298440715,0.1855699,107750.0,107740.0,0.36172812]
[1751298440911,0.2231699,107750.0,107740.0,1.41778344]
[1751298441112,0.1855699,107750.0,107740.0,1.46417804]
[1751298441324,0.1855699,107750.0,107740.0,1.48898344]
[1751298441519,0.3984,107760.0,107740.0,1.95344494]
[1751298441721,0.3984,107760.0,107750.0,0.67828]
[1751298441926,0.39802822,107760.0,107750.0,0.67828]
[1751298442425,0.62997832,107760.0,107750.0,0.67784]
[1751298442625,0.39802822,107760.0,107750.0,0.8634097]
[1751298443121,0.39802822,107760.0,107750.0,0.8632097]
[1751298443335,0.43552822,107760.0,107750.0,0.8632097]
[1751298443528,0.43552822,107760.0,107750.0,0.67764]
[1751298444127,0.43552822,107760.0,107750.0,0.8632097]
[1751298444420,0.62108072,107760.0,107750.0,0.67764]
[1751298444824,0.48191752,107760.0,107740.0,0.57149168]
[1751298445021,0.0765,107750.0,107740.0,0.76591151]
[1751298445322,0.5955372,107750.0,107740.0,1.2477999]
[1751298445529,0.5955372,107750.0,107740.0,0.3784799]
[1751298445730,0.2238691,107750.0,107740.0,0.3784799]
[1751298445932,0.2238691,107750.0,107740.0,1.4329462]
[1751298446132,0.2238691,107750.0,107740.0,1.2473599]
[1751298446432,0.2238691,107750.0,107740.0,1.4329462]
[1751298446826,0.2238691,107750.0,107740.0,1.4327062]
[1751298447028,0.2238691,107750.0,107740.0,0.5640662]
[1751298447225,0.2238691,107750.0,107740.0,1.4321462]
[1751298447830,0.2238691,107750.0,107740.0,1.2465599]
[1751298448230,0.2238691,107750.0,107740.0,1.4321465]
[1751298448630,0.2238691,107750.0,107740.0,1.50718475]
[1751298448836,0.2238691,107750.0,107740.0,1.50666475]
[1751298449333,0.5846691,107750.0,107740.0,0.09271815]
[1751298449537,0.5846691,107750.0,107740.0,0.75032282]
[1751298449726,0.5846691,107750.0,107740.0,0.75057105]
[1751298449930,0.9563372,107750.0,107740.0,0.75057105]
[1751298450132,0.9563372,107750.0,107740.0,0.01527374]
[1751298450333,0.9563372,107750.0,107740.0,0.68979374]
[1751298450642,1.3919612,107750.0,107740.0,0.01527374]
[1751298451044,0.9563372,107750.0,107740.0,0.20086034]
[1751298451249,0.2238691,107750.0,107740.0,1.23606034]
[1751298451749,0.2238691,107750.0,107740.0,0.87526034]
[1751298451942,0.2238691,107750.0,107740.0,1.23606034]
[1751298452146,0.0383,107750.0,107740.0,0.87526034]
[1751298452444,0.2238694,107750.0,107740.0,0.87526034]
[1751298452838,0.2238694,107750.0,107740.0,0.20086034]
[1751298453048,0.0383,107750.0,107740.0,0.87618034]
[1751298453250,0.2238694,107750.0,107740.0,1.32072055]
[1751298455550,0.075,107750.0,107740.0,1.69238865]
[1751298456047,0.075,107750.0,107740.0,1.72768865]
[1751298456250,0.075,107750.0,107740.0,1.35602055]
[1751298456440,0.0383,107750.0,107740.0,1.76409698]
[1751298456639,0.0383,107750.0,107740.0,1.39253806]
[1751298456846,0.0383,107750.0,107740.0,1.76609783]
[1751298457152,0.0383,107750.0,107740.0,1.43083806]
[1751298457450,0.0383,107750.0,107740.0,1.80250616]
[1751298457848,0.0383,107750.0,107740.0,1.80252795]
[1751298458444,0.0383,107750.0,107740.0,1.48593598]
[1751298458643,0.0383,107750.0,107740.0,1.85760408]
[1751298458941,0.0383,107750.0,107740.0,1.82119575]
[1751298459345,0.0383,107750.0,107740.0,2.19120608]
[1751298459850,0.2686415,107760.0,107750.0,0.20217954]
[1751298460047,0.30606972,107760.0,107750.0,0.67976566]
[1751298462155,0.30606972,107760.0,107750.0,0.49419566]
[1751298462358,0.30606972,107760.0,107750.0,0.47758612]
[1751298462558,0.30606972,107760.0,107750.0,1.51663838]
[1751298462856,0.67773782,107760.0,107750.0,1.28687027]
[1751298463054,0.67773782,107760.0,107750.0,0.4390534]
[1751298463262,1.03853782,107760.0,107750.0,0.73901538]
[1751298463452,1.03853782,107760.0,107750.0,0.70254537]
[1751298464160,1.22414582,107760.0,107750.0,0.03090537]
[1751298464551,1.47414582,107760.0,107750.0,0.01436224]
[1751298464953,0.18557,107750.0,107740.0,0.23515681]
[1751298465157,0.767894,107750.0,107740.0,0.2456645]
[1751298465454,0.9539381,107750.0,107740.0,0.2456645]
[1751298465647,0.58227,107750.0,107740.0,0.20919449]
[1751298465848,0.9539381,107750.0,107740.0,0.20919449]
[1751298466063,0.9539381,107750.0,107740.0,0.95859631]
[1751298467970,0.58227,107750.0,107740.0,0.95703631]
[1751298468150,0.9887381,107750.0,107740.0,0.95703631]
[1751298469560,0.9887381,107750.0,107740.0,0.94615684]
[1751298471856,0.61707,107750.0,107740.0,0.94615684]
[1751298472055,0.9887381,107750.0,107740.0,0.94615684]
[1751298472660,0.9887381,107750.0,107740.0,0.87015502]
[1751298473258,0.61707,107750.0,107740.0,0.87015502]
[1751298473458,0.9887381,107750.0,107740.0,0.87015502]
[1751298473859,0.9887381,107750.0,107740.0,0.90662503]
[1751298473860,0.61707,107750.0,107740.0,0.90662503]
[1751298474054,0.9887381,107750.0,107740.0,0.90662503]
[1751298474261,0.9887381,107750.0,107740.0,1.49056549]
[1751298474262,0.18557,107750.0,107740.0,1.49056549]
[1751298474463,0.18557,107750.0,107740.0,1.59926549]
[1751298475168,0.18557,107750.0,107740.0,2.0074036]
[1751298475469,0.18557,107750.0,107740.0,2.06247973]
[1751298475865,0.18557,107750.0,107740.0,2.43247973]
[1751298476060,0.499971,107760.0,107740.0,1.88777137]
[1751298476263,0.6855355,107760.0,107750.0,0.2598695]
[1751298476464,0.68516372,107760.0,107750.0,0.2598695]
[1751298476767,0.68516372,107760.0,107750.0,0.65713951]
[1751298476768,0.27797192,107760.0,107750.0,0.65713951]
[1751298477160,0.23158092,107760.0,107750.0,0.84677951]
[1751298477357,0.1855645,107760.0,107750.0,1.21844761]
[1751298477562,0.1855645,107760.0,107750.0,0.84677951]
[1751298478469,0.1855645,107760.0,107750.0,0.84677941]
[1751298478664,0.1855645,107760.0,107750.0,0.66121001]
[1751298478968,0.9180326,107760.0,107750.0,0.07417001]
[1751298479269,0.6280326,107760.0,107750.0,0.89578]
[1751298479459,0.2563645,107760.0,107750.0,0.94312862]
[1751298479656,0.2563645,107760.0,107750.0,1.12869802]
[1751298479864,0.2563645,107760.0,107750.0,1.48949802]
[1751298480166,0.1855645,107760.0,107750.0,1.52689802]
[1751298480870,0.1855521,107760.0,107750.0,1.66607142]
[1751298481066,0.4071805,107780.0,107760.0,0.0463846]
[1751298481269,0.2319107,107780.0,107770.0,0.8529349]
[1751298481463,0.1855177,107780.0,107770.0,1.0631689]
[1751298481675,0.1855177,107780.0,107770.0,1.0167864]
[1751298481964,0.3980462,107790.0,107780.0,0.1855176]
[1751298482177,0.3980462,107790.0,107780.0,0.07237001]
[1751298482362,0.7697143,107790.0,107780.0,0.74021001]
[1751298482562,1.1305143,107790.0,107780.0,0.70374]
[1751298482760,1.1305143,107790.0,107780.0,0.70423646]
[1751298482960,0.7588462,107790.0,107780.0,0.70423646]
[1751298483164,0.7697143,107790.0,107780.0,0.70423646]
[1751298483369,0.3980462,107790.0,107780.0,0.70423646]
[1751298483565,0.7588462,107790.0,107780.0,0.70423646]
[1751298483761,1.1305143,107790.0,107780.0,0.66845646]
[1751298483963,1.1305143,107790.0,107780.0,0.00049646]
[1751298484163,1.1305143,107790.0,107780.0,0.66965646]
[1751298485571,0.7588462,107790.0,107780.0,0.66965646]
[1751298485772,1.1305143,107790.0,107780.0,0.66965646]
[1751298487879,0.7588462,107790.0,107780.0,0.66945646]
[1751298488079,1.1305143,107790.0,107780.0,0.66945646]
[1751298489679,0.7588462,107790.0,107780.0,0.66945646]
[1751298489879,1.1305143,107790.0,107780.0,0.66945646]
[1751298490182,0.7588462,107790.0,107780.0,0.66945646]
[1751298490571,0.6440461,107800.0,107790.0,0.1855003]
[1751298490774,0.6904206,107800.0,107790.0,0.073]
[1751298490981,1.1002887,107800.0,107790.0,0.073]
[1751298491181,1.1354887,107800.0,107790.0,0.073]
[1751298491475,0.7746887,107800.0,107790.0,0.073]
[1751298491681,1.1354887,107800.0,107790.0,0.073]
[1751298491877,0.4030206,107800.0,107790.0,0.073]
[1751298492471,1.1354887,107800.0,107790.0,0.0357]
[1751298492670,0.1855001,107790.0,107780.0,0.03889646]
[1751298492974,0.9913682,107790.0,107780.0,0.66949646]
[1751298493177,0.9913682,107790.0,107780.0,0.00049646]
[1751298493376,0.9913682,107790.0,107780.0,0.02779928]
[1751298494079,0.6197001,107790.0,107780.0,0.02779928]
[1751298494275,0.6197001,107790.0,107780.0,0.21331658]
[1751298494474,0.396,107790.0,107780.0,0.10209928]
[1751298494674,0.1855001,107790.0,107780.0,1.03678011]
[1751298494882,0.1855002,107790.0,107780.0,1.17591601]
[1751298495080,0.3296159,107800.0,107780.0,1.59238602]
[1751298495381,0.190483,107800.0,107790.0,1.72755473]
[1751298495579,0.005,107800.0,107790.0,2.26715473]
[1751298495986,0.005,107800.0,107790.0,2.30362474]
[1751298496286,0.005,107800.0,107790.0,2.27633831]
[1751298496486,0.005,107800.0,107790.0,2.30360483]
[1751298496683,0.2792115,107810.0,107800.0,0.185483]
[1751298496882,0.2792115,107810.0,107800.0,0.638183]
[1751298497083,0.2792115,107810.0,107800.0,0.4527]
[1751298497688,0.2792115,107810.0,107800.0,1.3109]
[1751298497982,0.2792115,107810.0,107800.0,1.2909]
[1751298498188,0.2792115,107810.0,107800.0,0.92982]
[1751298498988,0.6508796,107810.0,107800.0,0.92982]
[1751298499188,0.2792115,107810.0,107800.0,0.92982]
[1751298499488,0.185483,107800.0,107790.0,0.06466652]
[1751298499689,0.5571511,107800.0,107790.0,0.06466652]
[1751298499987,0.1855002,107790.0,107780.0,1.33213722]
[1751298500184,0.2563002,107790.0,107780.0,1.33205722]
[1751298500489,0.1855347,107770.0,107760.0,0.01359393]
[1751298500685,0.1855519,107760.0,107750.0,0.197634]
[1751298500889,0.98882,107760.0,107750.0,0.39581958]
[1751298501088,0.98882,107760.0,107750.0,0.20813958]
[1751298501291,0.98882,107760.0,107750.0,1.06281958]
[1751298501690,0.1855519,107760.0,107750.0,1.24794868]
[1751298501988,0.1855519,107760.0,107750.0,1.32374868]
[1751298502386,0.1855519,107760.0,107750.0,1.39718352]
[1751298502586,0.1855519,107760.0,107750.0,1.20950352]
[1751298502784,0.1855519,107760.0,107750.0,0.54314352]
[1751298502979,0.1855519,107760.0,107750.0,1.32394868]
[1751298503182,0.7563063,107770.0,107760.0,0.1855519]
[1751298503380,0.75593452,107770.0,107760.0,0.19642926]
[1751298503581,0.34874722,107770.0,107760.0,0.19642926]
[1751298503781,0.34874722,107770.0,107760.0,0.30842799]
[1751298504688,0.34874722,107770.0,107760.0,1.16178799]
[1751298504885,0.23155992,107770.0,107760.0,1.16178799]
[1751298505879,0.7097945,107780.0,107770.0,0.1855345]
[1751298506085,0.6734945,107780.0,107770.0,1.04929059]
[1751298506386,0.6734945,107780.0,107770.0,1.1119145]
[1751298506589,0.3126945,107780.0,107770.0,1.1119145]
[1751298506790,0.1855325,107780.0,107770.0,1.4727145]
[1751298507490,0.2583325,107780.0,107770.0,1.28718]
[1751298507788,0.8052681,107780.0,107760.0,0.0364]
[1751298507988,0.9908025,107770.0,107760.0,0.06156089]
[1751298508193,0.9908025,107770.0,107760.0,0.67756441]
[1751298508387,0.9908025,107770.0,107760.0,0.18772]
[1751298508583,0.1855517,107760.0,107750.0,0.43423484]
[1751298508787,0.6293198,107760.0,107750.0,1.21098822]
[1751298508989,0.6668198,107760.0,107750.0,0.45295194]
[1751298509289,1.2132278,107760.0,107750.0,0.07287199]
[1751298509787,1.8757078,107760.0,107750.0,0.07287199]
[1751298510188,0.1855689,107750.0,107740.0,0.07305655]
[1751298510493,0.952237,107750.0,107740.0,0.07305655]
[1751298510687,0.987737,107750.0,107740.0,0.07305655]
[1751298510888,1.3594051,107750.0,107740.0,0.07305655]
[1751298511386,0.1856034,107730.0,107720.0,0.12953321]
[1751298511593,0.9180715,107730.0,107720.0,0.12953321]
[1751298511788,0.5941715,107730.0,107720.0,0.12953321]
[1751298511990,0.9549715,107730.0,107720.0,0.22075167]
[1751298512295,0.9549715,107730.0,107720.0,0.09121846]
[1751298513696,0.1856206,107720.0,107710.0,1.08933211]
[1751298513887,0.5941887,107720.0,107710.0,1.08933211]
[1751298514088,0.2225206,107720.0,107710.0,1.08933211]
[1751298514283,0.1856206,107720.0,107710.0,1.08933211]
[1751298514601,0.3153223,107730.0,107720.0,0.1856206]
[1751298514895,0.3153223,107730.0,107720.0,0.2576206]
[1751298515092,0.2320186,107730.0,107720.0,0.2576206]
[1751298515294,0.1856165,107730.0,107720.0,0.2576206]
[1751298515994,0.639192,107740.0,107730.0,0.1856034]
[1751298516189,0.2319926,107740.0,107730.0,0.9532434]
[1751298516389,0.3143708,107750.0,107740.0,0.1855861]
[1751298516598,0.68566712,107750.0,107740.0,0.0376]
[1751298517192,0.27799902,107750.0,107740.0,0.2231861]
[1751298517496,0.27799902,107750.0,107740.0,0.4563201]
[1751298517692,0.1855833,107750.0,107740.0,0.4563201]
[1751298517895,0.3143434,107760.0,107750.0,0.1855689]
[1751298518089,0.3143434,107760.0,107750.0,0.69674]
[1751298518285,0.7217115,107760.0,107750.0,0.69674]
[1751298518789,0.3500434,107760.0,107750.0,0.65944]
[1751298519094,0.7217115,107760.0,107750.0,0.65944]
[1751298519395,0.7569115,107760.0,107750.0,0.65944]
[1751298519891,0.6860115,107760.0,107750.0,0.8450089]
[1751298520091,0.3143434,107760.0,107750.0,0.8823089]
[1751298520594,0.3143434,107760.0,107750.0,0.69674]
[1751298521091,0.6860115,107760.0,107750.0,0.69674]
[1751298521299,0.1855689,107750.0,107740.0,0.746194]
[1751298521495,0.593437,107750.0,107740.0,1.441134]
[1751298521698,0.954237,107750.0,107740.0,0.892734]
[1751298521898,0.991337,107750.0,107740.0,0.855674]
[1751298522196,0.991337,107750.0,107740.0,0.197634]
[1751298524597,0.630537,107750.0,107740.0,0.4174202]
[1751298524787,0.2217689,107750.0,107740.0,0.4174202]
[1751298525598,0.2217689,107750.0,107740.0,0.231834]
[1751298525998,0.2217689,107750.0,107740.0,0.4174202]
[1751298526196,0.2217689,107750.0,107740.0,0.7782202]
[1751298526394,0.1855689,107750.0,107740.0,0.8133202]
[1751298526601,0.1855689,107750.0,107740.0,0.4525202]
[1751298527290,0.1855689,107750.0,107740.0,0.6334002]
[1751298527493,0.1855689,107750.0,107740.0,0.8133202]
[1751298527689,0.1855689,107750.0,107740.0,1.4681202]
[1751298533906,0.2222517,107760.0,107750.0,0.1855689]
[1751298534110,0.1855517,107760.0,107750.0,0.2926689]
[1751298534304,0.1855517,107760.0,107750.0,0.8343489]
[1751298536703,0.1855517,107760.0,107750.0,0.8543489]
[1751298537101,0.1855517,107760.0,107750.0,0.8343489]
[1751298538414,0.1855517,107760.0,107750.0,0.84378972]
[1751298540303,0.5572198,107760.0,107750.0,0.62670972]
[1751298540508,0.1855689,107750.0,107740.0,0.81224727]
[1751298540712,0.595037,107750.0,107740.0,1.5723401]
[1751298540903,0.2233689,107750.0,107740.0,1.5723401]
[1751298541104,0.1855689,107750.0,107740.0,1.6100401]
[1751298541314,0.1855689,107750.0,107740.0,1.6476401]
[1751298541516,0.2319559,107760.0,107750.0,0.1855689]
[1751298541712,0.3625095,107770.0,107760.0,0.1855516]
[1751298541905,0.3625095,107770.0,107760.0,0.8710916]
[1751298542614,0.3625095,107770.0,107760.0,0.68554]
[1751298542814,0.3625095,107770.0,107760.0,0.8710916]
[1751298543014,0.7341776,107770.0,107760.0,0.8710916]
[1751298543311,1.0949776,107770.0,107760.0,0.8710916]
[1751298543512,1.1335776,107770.0,107760.0,0.8710916]
[1751298543914,1.1335776,107770.0,107760.0,0.68554]
[1751298544618,0.7619095,107770.0,107760.0,0.64784]
[1751298544814,1.15643432,107770.0,107760.0,0.64784]
[1751298545016,0.1855515,107760.0,107750.0,0.1111]
[1751298545215,0.1855687,107750.0,107740.0,0.92486]
[1751298545411,0.5935368,107750.0,107740.0,1.6077]
[1751298545606,0.5935368,107750.0,107740.0,0.594434]
[1751298545812,0.6287368,107750.0,107740.0,1.241034]
[1751298546010,0.6287368,107750.0,107740.0,1.42662]
[1751298546210,0.6287368,107750.0,107740.0,1.241034]
[1751298546813,0.6287368,107750.0,107740.0,0.594434]
[1751298547118,0.6287368,107750.0,107740.0,0.880234]
[1751298547514,0.2218687,107750.0,107740.0,1.0658199]
[1751298548219,0.1855687,107750.0,107740.0,1.1021199]
[1751298548615,0.1855687,107750.0,107740.0,1.4629199]
[1751298549813,0.5572368,107750.0,107740.0,1.1021199]
[1751298550015,0.5572368,107750.0,107740.0,0.914694]
[1751298550218,0.1855687,107750.0,107740.0,1.1002799]
[1751298550512,0.1855687,107750.0,107740.0,1.4610799]
[1751298550717,0.1855687,107750.0,107740.0,1.1002799]
[1751298550917,0.1855687,107750.0,107740.0,0.4555199]
[1751298551113,0.5572368,107750.0,107740.0,1.088894]
[1751298551306,0.5572368,107750.0,107740.0,1.2381799]
[1751298551506,0.5959368,107750.0,107740.0,0.233634]
[1751298551711,0.5959368,107750.0,107740.0,0.878514]
[1751298552011,0.6688368,107750.0,107740.0,0.842514]
[1751298552210,1.0296368,107750.0,107740.0,0.197634]
[1751298553015,1.0296368,107750.0,107740.0,0.1659626]
[1751298553016,1.5869289,107750.0,107740.0,0.1659626]
[1751298553221,0.1856031,107730.0,107720.0,0.79261327]
[1751298553408,0.5572712,107730.0,107720.0,0.79224149]
[1751298553724,0.5959712,107730.0,107720.0,0.97786179]
[1751298554013,0.2243031,107730.0,107720.0,0.97786179]
[1751298554319,0.2243031,107730.0,107720.0,0.90488852]
[1751298554623,0.2243031,107730.0,107720.0,0.33342179]
[1751298554822,0.2243031,107730.0,107720.0,0.97762179]
[1751298555018,0.2243031,107730.0,107720.0,1.33842179]
[1751298555322,0.2243031,107730.0,107720.0,0.90464852]
[1751298555708,0.2243031,107730.0,107720.0,0.94264852]
[1751298555918,0.1856031,107730.0,107720.0,1.30344852]
[1751298556112,0.1856031,107730.0,107720.0,1.38642179]
[1751298556421,0.1856031,107730.0,107720.0,1.69642179]
[1751298556615,0.324799,107740.0,107730.0,0.1856031]
[1751298556821,0.324799,107740.0,107730.0,0.68689918]
[1751298557424,0.324799,107740.0,107730.0,0.693543]
[1751298558312,0.6964671,107740.0,107730.0,0.655543]
[1751298558522,0.7334671,107740.0,107730.0,0.0714399]
[1751298558716,1.1312671,107740.0,107730.0,0.0714399]
[1751298558919,0.8062671,107740.0,107730.0,0.0714399]
[1751298559221,0.2783738,107750.0,107740.0,0.1855859]
[1751298559421,0.3368679,107750.0,107740.0,0.8651459]
[1751298559631,0.3368679,107750.0,107740.0,1.2259459]
[1751298560122,0.2998679,107750.0,107740.0,1.4613799]
[1751298560526,0.2998679,107750.0,107740.0,1.4713799]
[1751298561422,0.20743458,107750.0,107740.0,1.84617598]
[1751298561724,0.1855687,107750.0,107740.0,2.21784408]
[1751298561932,0.1855592,107760.0,107750.0,0.1855687]
[1751298562134,0.4999622,107770.0,107750.0,0.1855687]
[1751298562135,0.6855098,107770.0,107760.0,0.1855514]
[1751298562321,0.70734421,107770.0,107760.0,0.9015914]
[1751298562524,0.75361231,107770.0,107760.0,1.2623914]
[1751298562826,0.38194421,107770.0,107760.0,1.2623914]
[1751298563034,0.3601098,107770.0,107760.0,1.2623914]
[1751298563734,0.7317779,107770.0,107760.0,1.2623914]
[1751298563924,0.1865304,107780.0,107770.0,0.1855342]
[1751298564121,0.20839078,107780.0,107770.0,0.2231342]
[1751298564320,0.26609078,107780.0,107770.0,0.2231342]
[1751298564523,0.26609078,107780.0,107770.0,0.0376]
[1751298564721,0.63775888,107780.0,107770.0,0.0376]
[1751298564924,0.6158985,107780.0,107770.0,0.0376]